Department Family,Entity,Payment Date,Expense Type,Expense Area,Supplier,Transaction Number,Amount,Invoice Description,Postal Code,"Programme, Admin or Capital Expenditure"
Food Standards Agency,Food Standards Agency,12/06/2014,Rent & management charges - AVH,Security & Estates,D T Z,380897,"1,513,314.85",PO 417100 RACK RENT QUARTERLY IN ADVANCE 24/06/2014 - 28/09/2014,EC2N 2BQ,Admin
Food Standards Agency,Food Standards Agency,20/06/2014,IT Software Licences,IT Service Delivery,Trustmarque Solutions Ltd,2213053,"339,068.77",PO 418110 SOFTWARE - Microsoft,YO32 9GZ,Admin
Food Standards Agency,Food Standards Agency,12/06/2014,Rent & management charges - AVH,Security & Estates,D T Z,380897,"302,662.97",PO 417100 RACK RENT QUARTERLY IN ADVANCE 24/06/2014 - 28/09/2014,EC2N 2BQ,Admin
Food Standards Agency,Food Standards Agency,20/06/2014,ASD support services,IT Service Delivery,Capita Secure Information Solutions Ltd,93689718,"280,720.46",PO 418175 MAY 2014 CORE SERVICES,SN14 0TW,Admin
Food Standards Agency,Food Standards Agency,20/06/2014,ASD support services,IT Service Delivery,Capita Secure Information Solutions Ltd,93655124,"257,396.50",PO 417850 CORE SERVICE CHARGE APRIL 2014,SN14 0TW,Admin
Food Standards Agency,Food Standards Agency,30/06/2014,Project Programme expenditure,Food & Feed Monitoring & Policy,C E F A S,8003941,"216,752.00","FS315015, Biotoxins Analysis May 14",NR33 0HT,Programme
Food Standards Agency,Food Standards Agency,06/06/2014,Project Programme expenditure,Animal Feed     ,Trading Standards Institute (GRANTS),ERS-33467-48835,"180,000.00",Official Controls Animal Feed - Trading Standards Coordination  Fees,SS15 6TH,Programme
Food Standards Agency,Food Standards Agency,16/06/2014,Civil service pension administration,Finance Director & Branch,London Pensions Fund Authority,FSAAPR14,"155,185.00",PO 417619 APRIL 2014 FUND VALUATION 2013,EC3N 4LP,Admin
Food Standards Agency,Food Standards Agency,16/06/2014,Civil service pension administration,Finance Director & Branch,London Pensions Fund Authority,FSAMAY14,"155,165.00",PO 417619 MAY 14 FUND VALUATION 2013,EC3N 4LP,Admin
Food Standards Agency,Food Standards Agency,04/06/2014,Rates/contrib in lieu of rates,Security & Estates,London Borough Of Camden,ARE6835165140314,"148,592.00",Po 418096 AVH BUS RATES JUN 2014,WC1H 8NH,Admin
Food Standards Agency,Food Standards Agency,10/06/2014,Project Programme expenditure,Delivery,Williams Lea Ltd,FSAWE14050008,"125,883.52",PO 417108 SFBB CATERING PACK REPRINT WITH 6PP,W2 6LG,Programme
Food Standards Agency,Food Standards Agency,30/06/2014,Rent & management charges - Outside London,Security & Estates,Defra C/o Capita,1002541468,"75,790.98",FOSS HSE 2013-14 Q4,EC2V 7NQ,Admin
Food Standards Agency,Food Standards Agency,20/06/2014,IT Software Licences,IT Service Delivery,Trustmarque Solutions Ltd,2213053,"67,813.75",PO 418110 SOFTWARE - Microsoft,YO32 9GZ,Admin
Food Standards Agency,Food Standards Agency,10/06/2014,Analysis of samples (non Trichinella),Operational Delivery,Food & Environment Research Agency,F0036707,"66,650.00",PO 417504 - SAMPLE ANALYSIS,YO41 1LZ,Programme
Food Standards Agency,Food Standards Agency,04/06/2014,Programme Evidence & Research Expenditure,Microbiological Food Safety Branch,University Of Liverpool,21443351,"56,990.00",PO 406580 FINAL RETENTION,L69 7ZX,Programme
Food Standards Agency,Food Standards Agency,24/06/2014,Project Programme expenditure,Food & Feed Monitoring & Policy,C E F A S,8003944,"50,987.16","FS315019, Phytoplankton Analysis for May 14",NR33 0HT,Programme
Food Standards Agency,Food Standards Agency,18/06/2014,IT Development projects,IT Strategy,Capita Secure Information Solutions Ltd,93655027,"48,312.40",PO 412481 CHARGES APR 14 BUILT IN DAYS SERVICE CHARGE,SN14 0TW,Admin
Food Standards Agency,Food Standards Agency,10/06/2014,Analysis of samples (non Trichinella),Operational Delivery,Food & Environment Research Agency,F0037099,"46,245.00",PO 417504 ANALYSIS,YO41 1LZ,Programme
Food Standards Agency,Food Standards Agency,04/06/2014,Project Programme expenditure,Comms Directors Office,L B I Ltd,301433797,"45,000.00",PO 418024 APPLICATION SUPPORT & MAINTENANCE FEES,E1 6RU,Programme
Food Standards Agency,Food Standards Agency,24/06/2014,Project Programme expenditure,Food & Feed Monitoring & Policy,C E F A S,8003944,"44,400.00","FS315019, Phytoplankton Analysis for May 14",NR33 0HT,Programme
Food Standards Agency,Food Standards Agency,24/06/2014,Project Programme expenditure,Operations Local Delivery ,C E F A S,8003942,"40,448.58",VARIOUS POS SAMPLE ANALYSIS,NR33 0HT,Programme
Food Standards Agency,Food Standards Agency,06/06/2014,Project Programme expenditure,Comms Directors Office,T N S Uk Ltd,260134133,"37,807.20",PO 416674 FIELDWORK & ANALYSIS,W5 1UA,Programme
Food Standards Agency,Food Standards Agency,04/06/2014,Project Programme expenditure,Food & Feed Monitoring & Policy,The James Hutton Institute,SIINV/00001640a,"35,000.00","FS101056, The capacity and pathogenic potential of VTEC",DD2 5DA,Programme
Food Standards Agency,Food Standards Agency,04/06/2014,Conference and meeting facilities including accommodation,Comms Directors Office,Calder Conferences Ltd,121406,"33,938.96",PO 417271 MANAGEMENT CONFERENCE,LS16 6RF,Admin
Food Standards Agency,Food Standards Agency,12/06/2014,Programme Evidence & Research Expenditure,Contaminants Policy & Strategy Unit,Leatherhead Food Research,1455643,"33,000.00",PO 415265 DATA MAPPING,KT22 7RY,Programme
Food Standards Agency,Food Standards Agency,04/06/2014,Project Programme expenditure,Consumer Protection & Commercial Support,London Borough Of Havering,9140089164,"32,951.01",PO 415951 FIGHTING FUND GRANT TO 31/3/14,RM1 3SL,Programme
Food Standards Agency,Food Standards Agency,04/06/2014,Mobile phone charges,IT Service Delivery,Vodafone Ltd,72020280,"32,472.12",MOBILE CHARGES MAY '14,RG14 5FF,Admin
Food Standards Agency,Food Standards Agency,12/06/2014,Project Programme expenditure,Food & Feed Monitoring & Policy,Hall Mark Meat Hygiene Ltd,SI0000686,"30,536.00","FS315020, Sampling visits May 14",GL6 9EN,Programme
Food Standards Agency,Food Standards Agency,06/06/2014,Project Programme expenditure,Consumer Protection & Commercial Support,Trustmarque Solutions Ltd,2213047,"30,192.36",PO 418147 12 MONTH SUBS BING MAPS,YO32 9GZ,Programme
Food Standards Agency,Food Standards Agency,24/06/2014,Programme Evidence & Research Expenditure,Contaminants Policy & Strategy Unit,Food & Environment Research Agency,F0037398,"30,000.00",PO 417004 O/S 2013/14 WORK,YO41 1LZ,Programme
Food Standards Agency,Food Standards Agency,16/06/2014,Utilities,Security & Estates,E D F Energy,EDF0168,"29,868.60",EDF INVOICE 168 MAY 2014,EX1 3UT,Admin
Food Standards Agency,Food Standards Agency,16/06/2014,Programme Evidence & Research Expenditure,Food & Feed Monitoring & Policy,Hutchinson Scientific Ltd,HS 14/08,"29,812.00","FS101052, Payment for the project deliverable D2",DD4 7RH,Programme
Food Standards Agency,Food Standards Agency,04/06/2014,Fixed Assets Additions,IT Strategy,Capita Secure Information Solutions Ltd,93682749,"27,460.00",PO 417923 BUFFER STOCK,SN14 0TW,Admin
Food Standards Agency,Food Standards Agency,24/06/2014,Service charges,Security & Estates,G4s Integrated Services (Uk) Ltd,M17281,"26,578.76",G4S MONTHLY CONTRACT CHARGES - MAY 14,S81 7QF,Admin
Food Standards Agency,Food Standards Agency,24/06/2014,Project Programme expenditure,Operations Local Delivery ,C E F A S,8003942,"26,418.00",VARIOUS POS SAMPLE ANALYSIS,NR33 0HT,Programme
Food Standards Agency,Food Standards Agency,18/06/2014,Programme Evidence & Research Expenditure,EU Regulatory Reform Branch,Food Control Consultants Ltd,354,"25,912.00",PO 418192 REVIEW,EH12 7AN,Programme
Food Standards Agency,Food Standards Agency,06/06/2014,IT Software Licences,IT Service Delivery,Trustmarque Solutions Ltd,2212463,"25,650.00",PO 418029 LICENCES - Yammer,YO32 9GZ,Admin
Food Standards Agency,Food Standards Agency,24/06/2014,Project Programme expenditure,Food & Feed Monitoring & Policy,C E F A S,8003944,"24,840.00","FS315019, Phytoplankton Analysis for May 14",NR33 0HT,Programme
Food Standards Agency,Food Standards Agency,04/06/2014,Project Programme expenditure,Food & Feed Operations & Enforcement Liaison,Glasgow City Council.,31530597,"22,882.20","FS515010, Co-ordinated food sampling grants",G1 1JE,Programme
Food Standards Agency,Food Standards Agency,24/06/2014,Laundry,Operational Delivery,Apparelmaster UK Ltd,54311,"22,156.07",PO 417042 LAUNDRY SERVICE 27/4/14-24/05/14,PR2 9ZD,Programme
Food Standards Agency,Food Standards Agency,30/06/2014,Rates/contrib in lieu of rates,Security & Estates,Defra C/o Capita,1002541468,"22,111.68",FOSS HSE 2013-14 Q4,EC2V 7NQ,Admin
Food Standards Agency,Food Standards Agency,24/06/2014,Project Programme expenditure,Operations Local Delivery ,C E F A S,8003942,"21,913.00",VARIOUS POS SAMPLE ANALYSIS,NR33 0HT,Programme
Food Standards Agency,Food Standards Agency,24/06/2014,Conference and meeting facilities including accommodation,Comms Directors Office,Lewis Live Ltd,15014,"21,418.50",PO 417884 MANAGEMENT CONFERENCE ,KT1 2SZ,Admin
Food Standards Agency,Food Standards Agency,06/06/2014,Project Programme expenditure,Animal Feed     ,Trading Standards Institute (GRANTS),ERS-33467-48835,"17,500.00",Official Controls Animal Feed - Fees Paid to NTSB,SS15 6TH,Programme
Food Standards Agency,Food Standards Agency,24/06/2014,Security,Security & Estates,G4s Integrated Services (Uk) Ltd,M17281,"17,497.76",G4S MONTHLY CONTRACT CHARGES - MAY 14,S81 7QF,Admin
Food Standards Agency,Food Standards Agency,02/06/2014,Agency/temp staff (clerical/admin only),Official Controls & Enforcement Strategy,LGC Ltd,50312234,"17,413.16",PO 416200 CROSS CONTAMINATION LEVEL UK MEAT PROCESS PLANTS,TW11 0LY,Admin
Food Standards Agency,Food Standards Agency,24/06/2014,Service charges,Security & Estates,G4s Integrated Services (Uk) Ltd,M17281,"16,051.21",G4S MONTHLY CONTRACT CHARGES - MAY 14,S81 7QF,Admin
Food Standards Agency,Food Standards Agency,06/06/2014,Project Programme expenditure,Analysis & Research Branch,National Centre For Social Research,51169,"15,383.00",PO 416838 ANALYSIS OF FOOD SAFETY PRACTICES,EC1V 0AX,Programme
Food Standards Agency,Food Standards Agency,10/06/2014,Analysis of samples (non Trichinella),Operational Delivery,Food & Environment Research Agency,F0036707,"13,330.00",PO 417504 - SAMPLE ANALYSIS,YO41 1LZ,Programme
Food Standards Agency,Food Standards Agency,10/06/2014,Analysis of samples (non Trichinella),Operational Delivery,Food & Environment Research Agency,F0037099,"9,249.00",PO 417504 ANALYSIS,YO41 1LZ,Programme
Food Standards Agency,Food Standards Agency,30/06/2014,Utilities,Security & Estates,Defra C/o Capita,1002541468,"8,775.28",FOSS HSE 2013-14 Q4,EC2V 7NQ,Admin
Food Standards Agency,Food Standards Agency,02/06/2014,Agency/temp staff (clerical/admin only),Official Controls & Enforcement Strategy,LGC Ltd,50312234,"7,074.83",PO 416200 CROSS CONTAMINATION LEVEL UK MEAT PROCESS PLANTS,TW11 0LY,Admin
Food Standards Agency,Food Standards Agency,20/06/2014,ASD support services,IT Service Delivery,Capita Secure Information Solutions Ltd,93655124,"6,958.30",PO 417850 CORE SERVICE CHARGE APRIL 2014,SN14 0TW,Admin
Food Standards Agency,Food Standards Agency,04/06/2014,Conference and meeting facilities including accommodation,Comms Directors Office,Calder Conferences Ltd,121406,"6,787.79",PO 417271 MANAGEMENT CONFERENCE,LS16 6RF,Admin
Food Standards Agency,Food Standards Agency,02/06/2014,Agency/temp staff (clerical/admin only),Official Controls & Enforcement Strategy,LGC Ltd,50312234,"6,524.18",PO 416200 CROSS CONTAMINATION LEVEL UK MEAT PROCESS PLANTS,TW11 0LY,Admin
Food Standards Agency,Food Standards Agency,06/06/2014,Project Programme expenditure,Animal Feed     ,Trading Standards Institute (GRANTS),ERS-33467-48835,"6,500.00",Official Controls Animal Feed - TSI Fund Management Fees,SS15 6TH,Programme
Food Standards Agency,Food Standards Agency,04/06/2014,Mobile phone charges,IT Service Delivery,Vodafone Ltd,72020280,"6,494.42",MOBILE CHARGES MAY '14,RG14 5FF,Admin
Food Standards Agency,Food Standards Agency,06/06/2014,Project Programme expenditure,Analysis & Research Branch,National Centre For Social Research,51169,"6,346.00",PO 416838 ANALYSIS OF FOOD SAFETY PRACTICES,EC1V 0AX,Programme
Food Standards Agency,Food Standards Agency,06/06/2014,Project Programme expenditure,Consumer Protection & Commercial Support,Trustmarque Solutions Ltd,2213047,"6,038.47",PO 418147 12 MONTH SUBS BING MAPS,YO32 9GZ,Programme
Food Standards Agency,Food Standards Agency,24/06/2014,Programme Evidence & Research Expenditure,Contaminants Policy & Strategy Unit,Food & Environment Research Agency,F0037398,"6,000.00",PO 417004 O/S 2013/14 WORK,YO41 1LZ,Programme
Food Standards Agency,Food Standards Agency,16/06/2014,Utilities,Security & Estates,E D F Energy,EDF0168,"5,973.72",EDF INVOICE 168 MAY 2014,EX1 3UT,Admin
Food Standards Agency,Food Standards Agency,02/06/2014,Agency/temp staff (clerical/admin only),Official Controls & Enforcement Strategy,LGC Ltd,50312234,"5,930.11",PO 416200 CROSS CONTAMINATION LEVEL UK MEAT PROCESS PLANTS,TW11 0LY,Admin
Food Standards Agency,Food Standards Agency,04/06/2014,Fixed Assets Additions,IT Strategy,Capita Secure Information Solutions Ltd,93682749,"5,492.00",PO 417923 BUFFER STOCK,SN14 0TW,Admin
Food Standards Agency,Food Standards Agency,02/06/2014,Agency/temp staff (clerical/admin only),Official Controls & Enforcement Strategy,LGC Ltd,50312234,"5,430.72",PO 416200 CROSS CONTAMINATION LEVEL UK MEAT PROCESS PLANTS,TW11 0LY,Admin
Food Standards Agency,Food Standards Agency,06/06/2014,IT Software Licences,IT Service Delivery,Trustmarque Solutions Ltd,2212463,"5,130.00",PO 418029 LICENCES - Yammer,YO32 9GZ,Admin
Food Standards Agency,Food Standards Agency,24/06/2014,Laundry,Operational Delivery,Apparelmaster UK Ltd,54311,"4,431.21",PO 417042 LAUNDRY SERVICE 27/4/14-24/05/14,PR2 9ZD,Programme
Food Standards Agency,Food Standards Agency,04/06/2014,Travel UK ,Operational Delivery,Redfern Travel Ltd,81226,"3,509.44",CONSOLIDATED TRAVEL CHARGES WK 21,BD1 3AZ,Programme
Food Standards Agency,Food Standards Agency,02/06/2014,Agency/temp staff (clerical/admin only),Official Controls & Enforcement Strategy,LGC Ltd,50312234,"3,482.63",PO 416200 CROSS CONTAMINATION LEVEL UK MEAT PROCESS PLANTS,TW11 0LY,Admin
Food Standards Agency,Food Standards Agency,12/06/2014,Programme Evidence & Research Expenditure,Contaminants Policy & Strategy Unit,Campden Bri,20079945,"3,031.00",PO 417005-FS516009 MONITORING,GL55 6LD,Programme
Food Standards Agency,Food Standards Agency,12/06/2014,Programme Evidence & Research Expenditure,Contaminants Policy & Strategy Unit,Campden Bri,20079945,"3,031.00",PO 417005-FS516009 MONITORING,GL55 6LD,Programme
Food Standards Agency,Food Standards Agency,12/06/2014,Programme Evidence & Research Expenditure,Contaminants Policy & Strategy Unit,Campden Bri,20079945,"3,031.00",PO 417005-FS516009 MONITORING,GL55 6LD,Programme
Food Standards Agency,Food Standards Agency,12/06/2014,Programme Evidence & Research Expenditure,Contaminants Policy & Strategy Unit,Campden Bri,20079945,"3,031.00",PO 417005-FS516009 MONITORING,GL55 6LD,Programme
Food Standards Agency,Food Standards Agency,12/06/2014,Programme Evidence & Research Expenditure,Contaminants Policy & Strategy Unit,Campden Bri,20079945,"3,031.00",PO 417005-FS516009 MONITORING,GL55 6LD,Programme
Food Standards Agency,Food Standards Agency,12/06/2014,Programme Evidence & Research Expenditure,Contaminants Policy & Strategy Unit,Campden Bri,20079945,"3,031.00",PO 417005-FS516009 MONITORING,GL55 6LD,Programme
Food Standards Agency,Food Standards Agency,12/06/2014,Programme Evidence & Research Expenditure,Contaminants Policy & Strategy Unit,Campden Bri,20079945,"3,031.00",PO 417005-FS516009 MONITORING,GL55 6LD,Programme
Food Standards Agency,Food Standards Agency,16/06/2014,Travel UK ,Operational Delivery,Redfern Travel Ltd,82928,"2,690.56",CONSOLIDATED TRAVEL CHARGES WK 23,BD1 3AZ,Programme
Food Standards Agency,Food Standards Agency,16/06/2014,Travel UK ,Operations Assurance,Redfern Travel Ltd,82928,"2,562.99",CONSOLIDATED TRAVEL CHARGES WK 23,BD1 3AZ,Programme
Food Standards Agency,Food Standards Agency,04/06/2014,Travel UK ,Operations Assurance,Redfern Travel Ltd,81226,"2,506.55",CONSOLIDATED TRAVEL CHARGES WK 21,BD1 3AZ,Programme
Food Standards Agency,Food Standards Agency,04/06/2014,Mobile phone charges,IT Service Delivery,Vodafone Ltd,72020280,"2,347.00",MOBILE CHARGES MAY '14,RG14 5FF,Admin
Food Standards Agency,Food Standards Agency,24/06/2014,Travel UK ,Operational Delivery,Redfern Travel Ltd,83127,"2,160.94",CONSOLIDATED TRAVEL CHARGES WK 24,BD1 3AZ,Programme
Food Standards Agency,Food Standards Agency,24/06/2014,Travel UK ,Operations Assurance,Redfern Travel Ltd,83127,"2,115.62",CONSOLIDATED TRAVEL CHARGES WK 24,BD1 3AZ,Programme
Food Standards Agency,Food Standards Agency,04/06/2014,Travel UK ,HR,Redfern Travel Ltd,81226,"2,018.52",CONSOLIDATED TRAVEL CHARGES WK 21,BD1 3AZ,Admin
Food Standards Agency,Food Standards Agency,24/06/2014,Service charges,Security & Estates,G4s Integrated Services (Uk) Ltd,M17281,"1,893.34",G4S MONTHLY CONTRACT CHARGES - MAY 14,S81 7QF,Admin
Food Standards Agency,Food Standards Agency,24/06/2014,Subsistence UK,Operational Delivery,Redfern Travel Ltd,83127,"1,736.81",CONSOLIDATED TRAVEL CHARGES WK 24,BD1 3AZ,Programme
Food Standards Agency,Food Standards Agency,16/06/2014,Travel UK ,Finance Director & Branch,Redfern Travel Ltd,82928,"1,589.84",CONSOLIDATED TRAVEL CHARGES WK 23,BD1 3AZ,Admin
Food Standards Agency,Food Standards Agency,04/06/2014,Travel UK ,Finance Director & Branch,Redfern Travel Ltd,81226,"1,525.16",CONSOLIDATED TRAVEL CHARGES WK 21,BD1 3AZ,Admin
Food Standards Agency,Food Standards Agency,24/06/2014,Subsistence UK,Operations Assurance,Redfern Travel Ltd,83127,"1,461.39",CONSOLIDATED TRAVEL CHARGES WK 24,BD1 3AZ,Programme
Food Standards Agency,Food Standards Agency,02/06/2014,Agency/temp staff (clerical/admin only),Official Controls & Enforcement Strategy,LGC Ltd,50312234,"1,414.97",PO 416200 CROSS CONTAMINATION LEVEL UK MEAT PROCESS PLANTS,TW11 0LY,Admin
Food Standards Agency,Food Standards Agency,20/06/2014,ASD support services,IT Service Delivery,Capita Secure Information Solutions Ltd,93655124,"1,391.66",PO 417850 CORE SERVICE CHARGE APRIL 2014,SN14 0TW,Admin
Food Standards Agency,Food Standards Agency,02/06/2014,Agency/temp staff (clerical/admin only),Official Controls & Enforcement Strategy,LGC Ltd,50312234,"1,304.84",PO 416200 CROSS CONTAMINATION LEVEL UK MEAT PROCESS PLANTS,TW11 0LY,Admin
Food Standards Agency,Food Standards Agency,04/06/2014,Subsistence UK,Legal Branch A,Redfern Travel Ltd,81226,"1,293.64",CONSOLIDATED TRAVEL CHARGES WK 21,BD1 3AZ,Admin
Food Standards Agency,Food Standards Agency,24/06/2014,Travel UK ,Planning and Performance,Redfern Travel Ltd,83127,"1,270.38",CONSOLIDATED TRAVEL CHARGES WK 24,BD1 3AZ,Admin
Food Standards Agency,Food Standards Agency,16/06/2014,Subsistence UK,Operational Delivery,Redfern Travel Ltd,82928,"1,203.26",CONSOLIDATED TRAVEL CHARGES WK 23,BD1 3AZ,Programme
Food Standards Agency,Food Standards Agency,02/06/2014,Agency/temp staff (clerical/admin only),Official Controls & Enforcement Strategy,LGC Ltd,50312234,"1,186.02",PO 416200 CROSS CONTAMINATION LEVEL UK MEAT PROCESS PLANTS,TW11 0LY,Admin
Food Standards Agency,Food Standards Agency,24/06/2014,Travel UK ,HR,Redfern Travel Ltd,83127,"1,155.14",CONSOLIDATED TRAVEL CHARGES WK 24,BD1 3AZ,Admin
Food Standards Agency,Food Standards Agency,04/06/2014,Travel UK ,Operations Local Delivery ,Redfern Travel Ltd,81226,"1,091.46",CONSOLIDATED TRAVEL CHARGES WK 21,BD1 3AZ,Admin
Food Standards Agency,Food Standards Agency,16/06/2014,Travel UK ,Consumer Protection & Commercial Support,Redfern Travel Ltd,82928,"1,090.45",CONSOLIDATED TRAVEL CHARGES WK 23,BD1 3AZ,Admin
Food Standards Agency,Food Standards Agency,02/06/2014,Agency/temp staff (clerical/admin only),Official Controls & Enforcement Strategy,LGC Ltd,50312234,"1,086.14",PO 416200 CROSS CONTAMINATION LEVEL UK MEAT PROCESS PLANTS,TW11 0LY,Admin
Food Standards Agency,Food Standards Agency,16/06/2014,Travel UK ,Animal Feed     ,Redfern Travel Ltd,82928,"1,084.67",CONSOLIDATED TRAVEL CHARGES WK 23,BD1 3AZ,Admin
Food Standards Agency,Food Standards Agency,24/06/2014,Travel UK ,Chair & Deputy Chair,Redfern Travel Ltd,83127,"1,038.55",CONSOLIDATED TRAVEL CHARGES WK 24,BD1 3AZ,Admin
Food Standards Agency,Food Standards Agency,16/06/2014,Travel UK ,HR,Redfern Travel Ltd,82928,"1,020.04",CONSOLIDATED TRAVEL CHARGES WK 23,BD1 3AZ,Admin
Food Standards Agency,Food Standards Agency,24/06/2014,Office machinery: hire,Security & Estates,G4s Integrated Services (Uk) Ltd,M17281,"1,000.00",G4S MONTHLY CONTRACT CHARGES - MAY 14,S81 7QF,Admin
Food Standards Agency,Food Standards Agency,24/06/2014,Subsistence UK,Operations Local Delivery ,Redfern Travel Ltd,83127,976.49,CONSOLIDATED TRAVEL CHARGES WK 24,BD1 3AZ,Admin
Food Standards Agency,Food Standards Agency,16/06/2014,Travel UK ,Operations Local Delivery ,Redfern Travel Ltd,82928,927.47,CONSOLIDATED TRAVEL CHARGES WK 23,BD1 3AZ,Admin
Food Standards Agency,Food Standards Agency,24/06/2014,Travel UK ,Operations Local Delivery ,Redfern Travel Ltd,83127,920.46,CONSOLIDATED TRAVEL CHARGES WK 24,BD1 3AZ,Admin
Food Standards Agency,Food Standards Agency,04/06/2014,Subsistence UK,Operational Delivery,Redfern Travel Ltd,81226,917.93,CONSOLIDATED TRAVEL CHARGES WK 21,BD1 3AZ,Programme
Food Standards Agency,Food Standards Agency,16/06/2014,International Travel,Analysis & Research Branch,Redfern Travel Ltd,82928,908.31,CONSOLIDATED TRAVEL CHARGES WK 23,BD1 3AZ,Admin
Food Standards Agency,Food Standards Agency,24/06/2014,Travel UK ,Internal Audit,Redfern Travel Ltd,83127,882.34,CONSOLIDATED TRAVEL CHARGES WK 24,BD1 3AZ,Admin
Food Standards Agency,Food Standards Agency,24/06/2014,Subsistence UK,Planning and Performance,Redfern Travel Ltd,83127,864.25,CONSOLIDATED TRAVEL CHARGES WK 24,BD1 3AZ,Admin
Food Standards Agency,Food Standards Agency,16/06/2014,Travel UK ,Chair & Deputy Chair,Redfern Travel Ltd,82928,848.11,CONSOLIDATED TRAVEL CHARGES WK 23,BD1 3AZ,Admin
Food Standards Agency,Food Standards Agency,04/06/2014,Subsistence UK,Operations Assurance,Redfern Travel Ltd,81226,839.88,CONSOLIDATED TRAVEL CHARGES WK 21,BD1 3AZ,Programme
Food Standards Agency,Food Standards Agency,16/06/2014,Travel UK ,Planning and Performance,Redfern Travel Ltd,82928,778.38,CONSOLIDATED TRAVEL CHARGES WK 23,BD1 3AZ,Admin
Food Standards Agency,Food Standards Agency,16/06/2014,Travel UK ,Area 1 Scotland - Cluster 13,Redfern Travel Ltd,82928,771.78,CONSOLIDATED TRAVEL CHARGES WK 23,BD1 3AZ,Programme
Food Standards Agency,Food Standards Agency,16/06/2014,Travel UK ,IT Information & Knowledge Management,Redfern Travel Ltd,82928,739.94,CONSOLIDATED TRAVEL CHARGES WK 23,BD1 3AZ,Admin
Food Standards Agency,Food Standards Agency,04/06/2014,International Travel,Legal Branch A,Redfern Travel Ltd,81226,724.40,CONSOLIDATED TRAVEL CHARGES WK 21,BD1 3AZ,Admin
Food Standards Agency,Food Standards Agency,24/06/2014,Subsistence UK,HR,Redfern Travel Ltd,83127,685.94,CONSOLIDATED TRAVEL CHARGES WK 24,BD1 3AZ,Admin
Food Standards Agency,Food Standards Agency,24/06/2014,Travel UK ,Operations Assurance - Admin,Redfern Travel Ltd,83127,663.98,CONSOLIDATED TRAVEL CHARGES WK 24,BD1 3AZ,Admin
Food Standards Agency,Food Standards Agency,04/06/2014,Travel UK ,Planning and Performance,Redfern Travel Ltd,81226,627.18,CONSOLIDATED TRAVEL CHARGES WK 21,BD1 3AZ,Admin
Food Standards Agency,Food Standards Agency,04/06/2014,International Travel,Contaminants Policy & Strategy Unit,Redfern Travel Ltd,81226,619.90,CONSOLIDATED TRAVEL CHARGES WK 21,BD1 3AZ,Admin
Food Standards Agency,Food Standards Agency,04/06/2014,Travel UK ,Area 5 South West England - Cluster 54,Redfern Travel Ltd,81226,603.72,CONSOLIDATED TRAVEL CHARGES WK 21,BD1 3AZ,Programme
Food Standards Agency,Food Standards Agency,24/06/2014,Conference and meeting facilities including accommodation,Comms Directors Office,Lewis Live Ltd,15014,569.60,PO 417884 MANAGEMENT CONFERENCE,KT1 2SZ,Admin
Food Standards Agency,Food Standards Agency,04/06/2014,Subsistence UK,Operations Assurance - Admin,Redfern Travel Ltd,81226,541.39,CONSOLIDATED TRAVEL CHARGES WK 21,BD1 3AZ,Admin
Food Standards Agency,Food Standards Agency,04/06/2014,Subsistence UK,Non Meat Field Ops,Redfern Travel Ltd,81226,526.62,CONSOLIDATED TRAVEL CHARGES WK 21,BD1 3AZ,Programme
Food Standards Agency,Food Standards Agency,24/06/2014,Travel UK ,Area 2 Wales - Cluster 21,Redfern Travel Ltd,83127,525.18,CONSOLIDATED TRAVEL CHARGES WK 24,BD1 3AZ,Programme
Food Standards Agency,Food Standards Agency,16/06/2014,Travel UK ,Operations Assurance - Admin,Redfern Travel Ltd,82928,523.59,CONSOLIDATED TRAVEL CHARGES WK 23,BD1 3AZ,Admin
Food Standards Agency,Food Standards Agency,16/06/2014,Subsistence UK,Legal Branch A,Redfern Travel Ltd,82928,523.33,CONSOLIDATED TRAVEL CHARGES WK 23,BD1 3AZ,Admin
Food Standards Agency,Food Standards Agency,04/06/2014,Subsistence UK,Area 1 Scotland - Cluster 11,Redfern Travel Ltd,81226,511.83,CONSOLIDATED TRAVEL CHARGES WK 21,BD1 3AZ,Programme
Food Standards Agency,Food Standards Agency,04/06/2014,Subsistence UK,Area 1 Scotland - Cluster 12,Redfern Travel Ltd,81226,511.59,CONSOLIDATED TRAVEL CHARGES WK 21,BD1 3AZ,Programme
Food Standards Agency,Food Standards Agency,04/06/2014,Subsistence UK,Area 1 Scotland - Cluster 13,Redfern Travel Ltd,81226,511.59,CONSOLIDATED TRAVEL CHARGES WK 21,BD1 3AZ,Programme
Food Standards Agency,Food Standards Agency,24/06/2014,Subsistence UK,Area 3 North West England - Cluster 33,Redfern Travel Ltd,83127,510.08,CONSOLIDATED TRAVEL CHARGES WK 24,BD1 3AZ,Programme
Food Standards Agency,Food Standards Agency,16/06/2014,Travel UK ,Procurement,Redfern Travel Ltd,82928,487.74,CONSOLIDATED TRAVEL CHARGES WK 23,BD1 3AZ,Admin
Food Standards Agency,Food Standards Agency,16/06/2014,Subsistence UK,Operations Assurance,Redfern Travel Ltd,82928,478.22,CONSOLIDATED TRAVEL CHARGES WK 23,BD1 3AZ,Programme
Food Standards Agency,Food Standards Agency,04/06/2014,Travel UK ,Comms Directors Office,Redfern Travel Ltd,81226,477.40,CONSOLIDATED TRAVEL CHARGES WK 21,BD1 3AZ,Admin
Food Standards Agency,Food Standards Agency,24/06/2014,Travel UK ,Finance Director & Branch,Redfern Travel Ltd,83127,469.79,CONSOLIDATED TRAVEL CHARGES WK 24,BD1 3AZ,Admin
Food Standards Agency,Food Standards Agency,24/06/2014,Subsistence UK,Operations Assurance - Admin,Redfern Travel Ltd,83127,466.61,CONSOLIDATED TRAVEL CHARGES WK 24,BD1 3AZ,Admin
Food Standards Agency,Food Standards Agency,24/06/2014,Travel UK ,Non Meat Field Ops,Redfern Travel Ltd,83127,459.97,CONSOLIDATED TRAVEL CHARGES WK 24,BD1 3AZ,Programme
Food Standards Agency,Food Standards Agency,16/06/2014,Subsistence UK,Operations Local Delivery ,Redfern Travel Ltd,82928,450.32,CONSOLIDATED TRAVEL CHARGES WK 23,BD1 3AZ,Admin
Food Standards Agency,Food Standards Agency,16/06/2014,Subsistence UK,Non Meat Field Ops,Redfern Travel Ltd,82928,439.12,CONSOLIDATED TRAVEL CHARGES WK 23,BD1 3AZ,Programme
Food Standards Agency,Food Standards Agency,04/06/2014,Subsistence UK,Better Regulations & Sustainable Development,Redfern Travel Ltd,81226,428.19,CONSOLIDATED TRAVEL CHARGES WK 21,BD1 3AZ,Admin
Food Standards Agency,Food Standards Agency,04/06/2014,Subsistence EC,Official Feed & Foods Controls Policy Unit,Redfern Travel Ltd,81226,425.36,CONSOLIDATED TRAVEL CHARGES WK 21,BD1 3AZ,Admin
Food Standards Agency,Food Standards Agency,16/06/2014,Subsistence UK,Operations Assurance - Admin,Redfern Travel Ltd,82928,413.12,CONSOLIDATED TRAVEL CHARGES WK 23,BD1 3AZ,Admin
Food Standards Agency,Food Standards Agency,16/06/2014,Subsistence UK,Animal Feed     ,Redfern Travel Ltd,82928,405.24,CONSOLIDATED TRAVEL CHARGES WK 23,BD1 3AZ,Admin
Food Standards Agency,Food Standards Agency,04/06/2014,Subsistence EC,Food Hygiene Policy Branch,Redfern Travel Ltd,81226,391.20,CONSOLIDATED TRAVEL CHARGES WK 21,BD1 3AZ,Admin
Food Standards Agency,Food Standards Agency,24/06/2014,Subsistence UK,Area 5 South West England - Cluster 52,Redfern Travel Ltd,83127,386.31,CONSOLIDATED TRAVEL CHARGES WK 24,BD1 3AZ,Programme
Food Standards Agency,Food Standards Agency,04/06/2014,Travel UK ,Chair & Deputy Chair,Redfern Travel Ltd,81226,385.43,CONSOLIDATED TRAVEL CHARGES WK 21,BD1 3AZ,Admin
Food Standards Agency,Food Standards Agency,04/06/2014,Travel UK ,Area 4 North East England - Cluster 41,Redfern Travel Ltd,81226,369.84,CONSOLIDATED TRAVEL CHARGES WK 21,BD1 3AZ,Programme
Food Standards Agency,Food Standards Agency,04/06/2014,Subsistence UK,Area 1 Scotland - Cluster 15,Redfern Travel Ltd,81226,369.00,CONSOLIDATED TRAVEL CHARGES WK 21,BD1 3AZ,Programme
Food Standards Agency,Food Standards Agency,04/06/2014,Travel UK ,Area 6 South East England - Cluster 64,Redfern Travel Ltd,81226,357.79,CONSOLIDATED TRAVEL CHARGES WK 21,BD1 3AZ,Programme
Food Standards Agency,Food Standards Agency,04/06/2014,Travel UK ,Area 5 South West England - Cluster 57,Redfern Travel Ltd,81226,356.91,CONSOLIDATED TRAVEL CHARGES WK 21,BD1 3AZ,Programme
Food Standards Agency,Food Standards Agency,16/06/2014,Travel UK ,IT Service Delivery,Redfern Travel Ltd,82928,349.58,CONSOLIDATED TRAVEL CHARGES WK 23,BD1 3AZ,Admin
Food Standards Agency,Food Standards Agency,04/06/2014,Travel UK ,Area 6 South East England - Cluster 62,Redfern Travel Ltd,81226,349.29,CONSOLIDATED TRAVEL CHARGES WK 21,BD1 3AZ,Programme
Food Standards Agency,Food Standards Agency,16/06/2014,Travel UK ,Area 5 South West England - Cluster 57,Redfern Travel Ltd,82928,347.48,CONSOLIDATED TRAVEL CHARGES WK 23,BD1 3AZ,Programme
Food Standards Agency,Food Standards Agency,04/06/2014,Subsistence UK,Animal Feed     ,Redfern Travel Ltd,81226,339.34,CONSOLIDATED TRAVEL CHARGES WK 21,BD1 3AZ,Admin
Food Standards Agency,Food Standards Agency,24/06/2014,Subsistence UK,Area 5 South West England - Cluster 57,Redfern Travel Ltd,83127,336.99,CONSOLIDATED TRAVEL CHARGES WK 24,BD1 3AZ,Programme
Food Standards Agency,Food Standards Agency,16/06/2014,Subsistence UK,Chair & Deputy Chair,Redfern Travel Ltd,82928,336.54,CONSOLIDATED TRAVEL CHARGES WK 23,BD1 3AZ,Admin
Food Standards Agency,Food Standards Agency,04/06/2014,Travel UK ,Directorate Support Unit,Redfern Travel Ltd,81226,330.88,CONSOLIDATED TRAVEL CHARGES WK 21,BD1 3AZ,Admin
Food Standards Agency,Food Standards Agency,04/06/2014,Subsistence UK,Operations Local Delivery ,Redfern Travel Ltd,81226,328.67,CONSOLIDATED TRAVEL CHARGES WK 21,BD1 3AZ,Admin
Food Standards Agency,Food Standards Agency,24/06/2014,International Travel,Analysis & Research Branch,Redfern Travel Ltd,83127,327.95,CONSOLIDATED TRAVEL CHARGES WK 24,BD1 3AZ,Admin
Food Standards Agency,Food Standards Agency,24/06/2014,Subsistence UK,Non Meat Field Ops,Redfern Travel Ltd,83127,325.12,CONSOLIDATED TRAVEL CHARGES WK 24,BD1 3AZ,Programme
Food Standards Agency,Food Standards Agency,16/06/2014,Travel UK ,Area 6 South East England - Cluster 66,Redfern Travel Ltd,82928,323.87,CONSOLIDATED TRAVEL CHARGES WK 23,BD1 3AZ,Programme
Food Standards Agency,Food Standards Agency,04/06/2014,Travel UK ,Area 4 North East England - Cluster 46,Redfern Travel Ltd,81226,308.01,CONSOLIDATED TRAVEL CHARGES WK 21,BD1 3AZ,Programme
Food Standards Agency,Food Standards Agency,24/06/2014,Travel UK ,Comms Directors Office,Redfern Travel Ltd,83127,302.84,CONSOLIDATED TRAVEL CHARGES WK 24,BD1 3AZ,Admin
Food Standards Agency,Food Standards Agency,24/06/2014,International Travel,Contaminants Policy & Strategy Unit,Redfern Travel Ltd,83127,289.90,CONSOLIDATED TRAVEL CHARGES WK 24,BD1 3AZ,Admin
Food Standards Agency,Food Standards Agency,24/06/2014,Subsistence UK,Better Regulations & Sustainable Development,Redfern Travel Ltd,83127,283.12,CONSOLIDATED TRAVEL CHARGES WK 24,BD1 3AZ,Admin
Food Standards Agency,Food Standards Agency,04/06/2014,International Travel,Contaminants HoD,Redfern Travel Ltd,81226,280.90,CONSOLIDATED TRAVEL CHARGES WK 21,BD1 3AZ,Admin
Food Standards Agency,Food Standards Agency,04/06/2014,International Travel,Hygiene & Microbiology Division HoD,Redfern Travel Ltd,81226,280.90,CONSOLIDATED TRAVEL CHARGES WK 21,BD1 3AZ,Admin
Food Standards Agency,Food Standards Agency,24/06/2014,Travel UK ,Area 2 Wales - Cluster 22,Redfern Travel Ltd,83127,278.56,CONSOLIDATED TRAVEL CHARGES WK 24,BD1 3AZ,Programme
Food Standards Agency,Food Standards Agency,04/06/2014,Travel UK ,Consumer Protection & Commercial Support,Redfern Travel Ltd,81226,268.41,CONSOLIDATED TRAVEL CHARGES WK 21,BD1 3AZ,Admin
Food Standards Agency,Food Standards Agency,24/06/2014,Subsistence EC,Contaminants Policy & Strategy Unit,Redfern Travel Ltd,83127,262.84,CONSOLIDATED TRAVEL CHARGES WK 24,BD1 3AZ,Admin
Food Standards Agency,Food Standards Agency,24/06/2014,Subsistence EC,Additives,Redfern Travel Ltd,83127,262.50,CONSOLIDATED TRAVEL CHARGES WK 24,BD1 3AZ,Admin
Food Standards Agency,Food Standards Agency,24/06/2014,Travel UK ,Animal Feed     ,Redfern Travel Ltd,83127,261.85,CONSOLIDATED TRAVEL CHARGES WK 24,BD1 3AZ,Admin
Food Standards Agency,Food Standards Agency,24/06/2014,Subsistence UK,Area 2 Wales - Cluster 21,Redfern Travel Ltd,83127,258.61,CONSOLIDATED TRAVEL CHARGES WK 24,BD1 3AZ,Programme
Food Standards Agency,Food Standards Agency,24/06/2014,Subsistence UK,Legal Branch A,Redfern Travel Ltd,83127,256.87,CONSOLIDATED TRAVEL CHARGES WK 24,BD1 3AZ,Admin
Food Standards Agency,Food Standards Agency,16/06/2014,Subsistence UK,Finance Director & Branch,Redfern Travel Ltd,82928,256.05,CONSOLIDATED TRAVEL CHARGES WK 23,BD1 3AZ,Admin
Food Standards Agency,Food Standards Agency,16/06/2014,International Travel,Additives,Redfern Travel Ltd,82928,250.90,CONSOLIDATED TRAVEL CHARGES WK 23,BD1 3AZ,Admin
Food Standards Agency,Food Standards Agency,24/06/2014,Travel UK ,Area 5 South West England - Cluster 57,Redfern Travel Ltd,83127,249.17,CONSOLIDATED TRAVEL CHARGES WK 24,BD1 3AZ,Programme
Food Standards Agency,Food Standards Agency,04/06/2014,Subsistence UK,Area 6 South East England - Cluster 62,Redfern Travel Ltd,81226,240.44,CONSOLIDATED TRAVEL CHARGES WK 21,BD1 3AZ,Programme
Food Standards Agency,Food Standards Agency,24/06/2014,Subsistence UK,Area 5 South West England - Cluster 51,Redfern Travel Ltd,83127,234.78,CONSOLIDATED TRAVEL CHARGES WK 24,BD1 3AZ,Programme
Food Standards Agency,Food Standards Agency,04/06/2014,Subsistence UK,Area 4 North East England - Cluster 41,Redfern Travel Ltd,81226,234.63,CONSOLIDATED TRAVEL CHARGES WK 21,BD1 3AZ,Programme
Food Standards Agency,Food Standards Agency,24/06/2014,Travel UK ,Area 5 South West England - Cluster 51,Redfern Travel Ltd,83127,230.90,CONSOLIDATED TRAVEL CHARGES WK 24,BD1 3AZ,Programme
Food Standards Agency,Food Standards Agency,24/06/2014,Travel UK ,Area 5 South West England - Cluster 52,Redfern Travel Ltd,83127,224.21,CONSOLIDATED TRAVEL CHARGES WK 24,BD1 3AZ,Programme
Food Standards Agency,Food Standards Agency,04/06/2014,Travel UK ,Area 1 Scotland - Cluster 13,Redfern Travel Ltd,81226,222.27,CONSOLIDATED TRAVEL CHARGES WK 21,BD1 3AZ,Programme
Food Standards Agency,Food Standards Agency,24/06/2014,Travel UK ,Area 6 South East England - Cluster 64,Redfern Travel Ltd,83127,222.21,CONSOLIDATED TRAVEL CHARGES WK 24,BD1 3AZ,Programme
Food Standards Agency,Food Standards Agency,04/06/2014,Subsistence UK,Planning and Performance,Redfern Travel Ltd,81226,222.12,CONSOLIDATED TRAVEL CHARGES WK 21,BD1 3AZ,Admin
Food Standards Agency,Food Standards Agency,16/06/2014,Travel UK ,Better Regulations & Sustainable Development,Redfern Travel Ltd,82928,221.83,CONSOLIDATED TRAVEL CHARGES WK 23,BD1 3AZ,Admin
Food Standards Agency,Food Standards Agency,04/06/2014,Subsistence EC,Consumer Protection & Commercial Support,Redfern Travel Ltd,81226,216.46,CONSOLIDATED TRAVEL CHARGES WK 21,BD1 3AZ,Admin
Food Standards Agency,Food Standards Agency,04/06/2014,Travel UK ,Better Regulations & Sustainable Development,Redfern Travel Ltd,81226,208.05,CONSOLIDATED TRAVEL CHARGES WK 21,BD1 3AZ,Admin
Food Standards Agency,Food Standards Agency,04/06/2014,Travel UK ,Animal Feed Branch,Redfern Travel Ltd,81226,195.88,CONSOLIDATED TRAVEL CHARGES WK 21,BD1 3AZ,Admin
Food Standards Agency,Food Standards Agency,16/06/2014,Subsistence UK,Better Regulations & Sustainable Development,Redfern Travel Ltd,82928,193.12,CONSOLIDATED TRAVEL CHARGES WK 23,BD1 3AZ,Admin
Food Standards Agency,Food Standards Agency,04/06/2014,Subsistence UK,Procurement,Redfern Travel Ltd,81226,191.12,CONSOLIDATED TRAVEL CHARGES WK 21,BD1 3AZ,Admin
Food Standards Agency,Food Standards Agency,04/06/2014,International Travel,Novel Food Unit,Redfern Travel Ltd,81226,190.90,CONSOLIDATED TRAVEL CHARGES WK 21,BD1 3AZ,Admin
Food Standards Agency,Food Standards Agency,04/06/2014,Subsistence UK,Directorate Support Unit,Redfern Travel Ltd,81226,189.56,CONSOLIDATED TRAVEL CHARGES WK 21,BD1 3AZ,Admin
Food Standards Agency,Food Standards Agency,24/06/2014,Subsistence UK,Directorate Support Unit,Redfern Travel Ltd,83127,189.56,CONSOLIDATED TRAVEL CHARGES WK 24,BD1 3AZ,Admin
Food Standards Agency,Food Standards Agency,04/06/2014,Travel UK ,Procurement,Redfern Travel Ltd,81226,189.44,CONSOLIDATED TRAVEL CHARGES WK 21,BD1 3AZ,Admin
Food Standards Agency,Food Standards Agency,16/06/2014,Travel UK ,Approvals & Veterinary Advice,Redfern Travel Ltd,82928,188.65,CONSOLIDATED TRAVEL CHARGES WK 23,BD1 3AZ,Programme
Food Standards Agency,Food Standards Agency,24/06/2014,Travel UK ,Consumer Protection & Commercial Support,Redfern Travel Ltd,83127,186.85,CONSOLIDATED TRAVEL CHARGES WK 24,BD1 3AZ,Admin
Food Standards Agency,Food Standards Agency,24/06/2014,Travel UK ,Hygiene & Microbiology Division HoD,Redfern Travel Ltd,83127,186.33,CONSOLIDATED TRAVEL CHARGES WK 24,BD1 3AZ,Admin
Food Standards Agency,Food Standards Agency,24/06/2014,Travel UK ,Area 6 South East England - Cluster 61,Redfern Travel Ltd,83127,185.75,CONSOLIDATED TRAVEL CHARGES WK 24,BD1 3AZ,Programme
Food Standards Agency,Food Standards Agency,16/06/2014,Travel UK ,Non Meat Field Ops,Redfern Travel Ltd,82928,184.54,CONSOLIDATED TRAVEL CHARGES WK 23,BD1 3AZ,Programme
Food Standards Agency,Food Standards Agency,24/06/2014,International Travel,Non Meat Field Ops,Redfern Travel Ltd,83127,181.40,CONSOLIDATED TRAVEL CHARGES WK 24,BD1 3AZ,Programme
Food Standards Agency,Food Standards Agency,24/06/2014,Travel UK ,Animal Feed Branch,Redfern Travel Ltd,83127,180.90,CONSOLIDATED TRAVEL CHARGES WK 24,BD1 3AZ,Admin
Food Standards Agency,Food Standards Agency,16/06/2014,International Travel,Contaminants HoD,Redfern Travel Ltd,82928,180.90,CONSOLIDATED TRAVEL CHARGES WK 23,BD1 3AZ,Admin
Food Standards Agency,Food Standards Agency,24/06/2014,International Travel,Novel Food Unit,Redfern Travel Ltd,83127,180.90,CONSOLIDATED TRAVEL CHARGES WK 24,BD1 3AZ,Admin
Food Standards Agency,Food Standards Agency,24/06/2014,Travel UK ,Directorate Support Unit,Redfern Travel Ltd,83127,179.47,CONSOLIDATED TRAVEL CHARGES WK 24,BD1 3AZ,Admin
Food Standards Agency,Food Standards Agency,24/06/2014,Subsistence UK,Area 2 Wales - Cluster 22,Redfern Travel Ltd,83127,178.77,CONSOLIDATED TRAVEL CHARGES WK 24,BD1 3AZ,Programme
Food Standards Agency,Food Standards Agency,24/06/2014,Travel UK ,Foodborne Diseases Branch,Redfern Travel Ltd,83127,178.65,CONSOLIDATED TRAVEL CHARGES WK 24,BD1 3AZ,Admin
Food Standards Agency,Food Standards Agency,24/06/2014,Travel UK ,Procurement,Redfern Travel Ltd,83127,178.36,CONSOLIDATED TRAVEL CHARGES WK 24,BD1 3AZ,Admin
Food Standards Agency,Food Standards Agency,04/06/2014,Travel UK ,Area 2 Wales - Cluster 22,Redfern Travel Ltd,81226,177.31,CONSOLIDATED TRAVEL CHARGES WK 21,BD1 3AZ,Programme
Food Standards Agency,Food Standards Agency,04/06/2014,Subsistence UK,Area 2 Wales - Cluster 22,Redfern Travel Ltd,81226,176.62,CONSOLIDATED TRAVEL CHARGES WK 21,BD1 3AZ,Programme
Food Standards Agency,Food Standards Agency,16/06/2014,Travel UK ,Comms Directors Office,Redfern Travel Ltd,82928,176.46,CONSOLIDATED TRAVEL CHARGES WK 23,BD1 3AZ,Admin
Food Standards Agency,Food Standards Agency,24/06/2014,Travel UK ,Area 1 Scotland - Cluster 11,Redfern Travel Ltd,83127,176.15,CONSOLIDATED TRAVEL CHARGES WK 24,BD1 3AZ,Programme
Food Standards Agency,Food Standards Agency,16/06/2014,Travel UK ,Area 5 South West England - Cluster 51,Redfern Travel Ltd,82928,176.03,CONSOLIDATED TRAVEL CHARGES WK 23,BD1 3AZ,Programme
Food Standards Agency,Food Standards Agency,24/06/2014,Travel UK ,Analysis & Research Branch,Redfern Travel Ltd,83127,175.65,CONSOLIDATED TRAVEL CHARGES WK 24,BD1 3AZ,Admin
Food Standards Agency,Food Standards Agency,16/06/2014,Travel UK ,Area 6 South East England - Cluster 65,Redfern Travel Ltd,82928,173.38,CONSOLIDATED TRAVEL CHARGES WK 23,BD1 3AZ,Programme
Food Standards Agency,Food Standards Agency,04/06/2014,Travel UK ,Animal Feed     ,Redfern Travel Ltd,81226,173.12,CONSOLIDATED TRAVEL CHARGES WK 21,BD1 3AZ,Admin
Food Standards Agency,Food Standards Agency,16/06/2014,Subsistence UK,Area 2 Wales - Cluster 23,Redfern Travel Ltd,82928,173.12,CONSOLIDATED TRAVEL CHARGES WK 23,BD1 3AZ,Programme
Food Standards Agency,Food Standards Agency,04/06/2014,Subsistence UK,Chief Executive & Private Office,Redfern Travel Ltd,81226,171.12,CONSOLIDATED TRAVEL CHARGES WK 21,BD1 3AZ,Admin
Food Standards Agency,Food Standards Agency,24/06/2014,Subsistence UK,Animal Feed     ,Redfern Travel Ltd,83127,171.12,CONSOLIDATED TRAVEL CHARGES WK 24,BD1 3AZ,Admin
Food Standards Agency,Food Standards Agency,04/06/2014,Travel UK ,Contaminants HoD,Redfern Travel Ltd,81226,171.03,CONSOLIDATED TRAVEL CHARGES WK 21,BD1 3AZ,Admin
Food Standards Agency,Food Standards Agency,04/06/2014,Travel UK ,IT Information & Knowledge Management,Redfern Travel Ltd,81226,169.71,CONSOLIDATED TRAVEL CHARGES WK 21,BD1 3AZ,Admin
Food Standards Agency,Food Standards Agency,16/06/2014,Travel UK ,Area 4 North East England - Cluster 41,Redfern Travel Ltd,82928,167.13,CONSOLIDATED TRAVEL CHARGES WK 23,BD1 3AZ,Programme
Food Standards Agency,Food Standards Agency,16/06/2014,Travel UK ,Procurement,Redfern Travel Ltd,82928,166.75,CONSOLIDATED TRAVEL CHARGES WK 23,BD1 3AZ,Admin
Food Standards Agency,Food Standards Agency,24/06/2014,International Travel,Operations Local Delivery ,Redfern Travel Ltd,83127,165.90,CONSOLIDATED TRAVEL CHARGES WK 24,BD1 3AZ,Admin
Food Standards Agency,Food Standards Agency,04/06/2014,Travel UK ,IT Strategy,Redfern Travel Ltd,81226,159.52,CONSOLIDATED TRAVEL CHARGES WK 21,BD1 3AZ,Admin
Food Standards Agency,Food Standards Agency,16/06/2014,Subsistence UK,Comms Directors Office,Redfern Travel Ltd,82928,159.12,CONSOLIDATED TRAVEL CHARGES WK 23,BD1 3AZ,Admin
Food Standards Agency,Food Standards Agency,24/06/2014,Travel UK ,Area 5 South West England - Cluster 54,Redfern Travel Ltd,83127,159.05,CONSOLIDATED TRAVEL CHARGES WK 24,BD1 3AZ,Programme
Food Standards Agency,Food Standards Agency,04/06/2014,Travel UK ,EU Regulatory Reform Branch,Redfern Travel Ltd,81226,157.00,CONSOLIDATED TRAVEL CHARGES WK 21,BD1 3AZ,Admin
Food Standards Agency,Food Standards Agency,16/06/2014,Travel UK ,Directorate Support Unit,Redfern Travel Ltd,82928,156.81,CONSOLIDATED TRAVEL CHARGES WK 23,BD1 3AZ,Admin
Food Standards Agency,Food Standards Agency,24/06/2014,Subsistence UK,Area 5 South West England - Cluster 54,Redfern Travel Ltd,83127,156.52,CONSOLIDATED TRAVEL CHARGES WK 24,BD1 3AZ,Programme
Food Standards Agency,Food Standards Agency,24/06/2014,Subsistence UK,Area 6 South East England - Cluster 61,Redfern Travel Ltd,83127,156.52,CONSOLIDATED TRAVEL CHARGES WK 24,BD1 3AZ,Programme
Food Standards Agency,Food Standards Agency,04/06/2014,International Travel,Contaminants Policy & Strategy Unit,Redfern Travel Ltd,81226,155.53,CONSOLIDATED TRAVEL CHARGES WK 21,BD1 3AZ,Admin
Food Standards Agency,Food Standards Agency,16/06/2014,Subsistence UK,HR,Redfern Travel Ltd,82928,153.88,CONSOLIDATED TRAVEL CHARGES WK 23,BD1 3AZ,Admin
Food Standards Agency,Food Standards Agency,24/06/2014,Travel UK ,Area 4 North East England - Cluster 47,Redfern Travel Ltd,83127,152.75,CONSOLIDATED TRAVEL CHARGES WK 24,BD1 3AZ,Programme
Food Standards Agency,Food Standards Agency,04/06/2014,Subsistence UK,Contaminants Policy & Strategy Unit,Redfern Travel Ltd,81226,151.56,CONSOLIDATED TRAVEL CHARGES WK 21,BD1 3AZ,Admin
Food Standards Agency,Food Standards Agency,04/06/2014,Travel UK ,Non Meat Field Ops,Redfern Travel Ltd,81226,149.22,CONSOLIDATED TRAVEL CHARGES WK 21,BD1 3AZ,Programme
Food Standards Agency,Food Standards Agency,04/06/2014,Travel UK ,Procurement,Redfern Travel Ltd,81226,148.85,CONSOLIDATED TRAVEL CHARGES WK 21,BD1 3AZ,Admin
Food Standards Agency,Food Standards Agency,16/06/2014,International Travel,European & International Strategy,Redfern Travel Ltd,82928,145.90,CONSOLIDATED TRAVEL CHARGES WK 23,BD1 3AZ,Admin
Food Standards Agency,Food Standards Agency,16/06/2014,Subsistence UK,Area 2 Wales - Cluster 22,Redfern Travel Ltd,82928,145.12,CONSOLIDATED TRAVEL CHARGES WK 23,BD1 3AZ,Programme
Food Standards Agency,Food Standards Agency,16/06/2014,Travel UK ,Area 4 North East England - Cluster 46,Redfern Travel Ltd,82928,140.57,CONSOLIDATED TRAVEL CHARGES WK 23,BD1 3AZ,Programme
Food Standards Agency,Food Standards Agency,24/06/2014,Travel UK ,Area 1 Scotland - Cluster 12,Redfern Travel Ltd,83127,140.14,CONSOLIDATED TRAVEL CHARGES WK 24,BD1 3AZ,Programme
Food Standards Agency,Food Standards Agency,04/06/2014,Travel UK ,Area 4 North East England - Cluster 45,Redfern Travel Ltd,81226,140.04,CONSOLIDATED TRAVEL CHARGES WK 21,BD1 3AZ,Programme
Food Standards Agency,Food Standards Agency,16/06/2014,Travel UK ,Area 1 Scotland - Cluster 15,Redfern Travel Ltd,82928,139.87,CONSOLIDATED TRAVEL CHARGES WK 23,BD1 3AZ,Programme
Food Standards Agency,Food Standards Agency,24/06/2014,Subsistence UK,Area 5 South West England - Cluster 53,Redfern Travel Ltd,83127,139.12,CONSOLIDATED TRAVEL CHARGES WK 24,BD1 3AZ,Programme
Food Standards Agency,Food Standards Agency,04/06/2014,Subsistence EC,Contaminants Policy & Strategy Unit,Redfern Travel Ltd,81226,138.75,CONSOLIDATED TRAVEL CHARGES WK 21,BD1 3AZ,Admin
Food Standards Agency,Food Standards Agency,04/06/2014,Subsistence UK,Novel Food Unit,Redfern Travel Ltd,81226,138.65,CONSOLIDATED TRAVEL CHARGES WK 21,BD1 3AZ,Admin
Food Standards Agency,Food Standards Agency,16/06/2014,Subsistence UK,Area 4 North East England - Cluster 46,Redfern Travel Ltd,82928,133.12,CONSOLIDATED TRAVEL CHARGES WK 23,BD1 3AZ,Programme
Food Standards Agency,Food Standards Agency,16/06/2014,Subsistence EC,Additives,Redfern Travel Ltd,82928,132.72,CONSOLIDATED TRAVEL CHARGES WK 23,BD1 3AZ,Admin
Food Standards Agency,Food Standards Agency,24/06/2014,Subsistence UK,Finance Director & Branch,Redfern Travel Ltd,83127,132.12,CONSOLIDATED TRAVEL CHARGES WK 24,BD1 3AZ,Admin
Food Standards Agency,Food Standards Agency,04/06/2014,Subsistence UK,IT HoD,Redfern Travel Ltd,81226,131.56,CONSOLIDATED TRAVEL CHARGES WK 21,BD1 3AZ,Admin
Food Standards Agency,Food Standards Agency,16/06/2014,Subsistence UK,IT HoD,Redfern Travel Ltd,82928,131.56,CONSOLIDATED TRAVEL CHARGES WK 23,BD1 3AZ,Admin
Food Standards Agency,Food Standards Agency,24/06/2014,Subsistence UK,IT Service Delivery,Redfern Travel Ltd,83127,131.56,CONSOLIDATED TRAVEL CHARGES WK 24,BD1 3AZ,Admin
Food Standards Agency,Food Standards Agency,04/06/2014,Subsistence UK,Security & Estates,Redfern Travel Ltd,81226,131.56,CONSOLIDATED TRAVEL CHARGES WK 21,BD1 3AZ,Admin
Food Standards Agency,Food Standards Agency,16/06/2014,Subsistence UK,Security & Estates,Redfern Travel Ltd,82928,130.56,CONSOLIDATED TRAVEL CHARGES WK 23,BD1 3AZ,Admin
Food Standards Agency,Food Standards Agency,04/06/2014,Travel UK ,Chief Executive & Private Office,Redfern Travel Ltd,81226,126.70,CONSOLIDATED TRAVEL CHARGES WK 21,BD1 3AZ,Admin
Food Standards Agency,Food Standards Agency,24/06/2014,Travel UK ,Contaminants Policy & Strategy Unit,Redfern Travel Ltd,83127,124.56,CONSOLIDATED TRAVEL CHARGES WK 24,BD1 3AZ,Admin
Food Standards Agency,Food Standards Agency,24/06/2014,Travel UK ,Procurement,Redfern Travel Ltd,83127,122.66,CONSOLIDATED TRAVEL CHARGES WK 24,BD1 3AZ,Admin
Food Standards Agency,Food Standards Agency,16/06/2014,Subsistence UK,Planning and Performance,Redfern Travel Ltd,82928,122.56,CONSOLIDATED TRAVEL CHARGES WK 23,BD1 3AZ,Admin
Food Standards Agency,Food Standards Agency,04/06/2014,Travel UK ,Legal Branch A,Redfern Travel Ltd,81226,121.72,CONSOLIDATED TRAVEL CHARGES WK 21,BD1 3AZ,Admin
Food Standards Agency,Food Standards Agency,24/06/2014,Subsistence EC,Operations Local Delivery ,Redfern Travel Ltd,83127,114.56,CONSOLIDATED TRAVEL CHARGES WK 24,BD1 3AZ,Admin
Food Standards Agency,Food Standards Agency,16/06/2014,Travel UK ,Internal Audit,Redfern Travel Ltd,82928,114.18,CONSOLIDATED TRAVEL CHARGES WK 23,BD1 3AZ,Admin
Food Standards Agency,Food Standards Agency,16/06/2014,Travel UK ,Contaminants HoD,Redfern Travel Ltd,82928,113.75,CONSOLIDATED TRAVEL CHARGES WK 23,BD1 3AZ,Admin
Food Standards Agency,Food Standards Agency,16/06/2014,Travel UK ,Delivery,Redfern Travel Ltd,82928,112.92,CONSOLIDATED TRAVEL CHARGES WK 23,BD1 3AZ,Admin
Food Standards Agency,Food Standards Agency,16/06/2014,International Travel,Analysis & Research Branch,Redfern Travel Ltd,82928,111.90,CONSOLIDATED TRAVEL CHARGES WK 23,BD1 3AZ,Admin
Food Standards Agency,Food Standards Agency,24/06/2014,Travel UK ,Better Regulations & Sustainable Development,Redfern Travel Ltd,83127,110.21,CONSOLIDATED TRAVEL CHARGES WK 24,BD1 3AZ,Admin
Food Standards Agency,Food Standards Agency,04/06/2014,Travel UK ,Operations Assurance - Admin,Redfern Travel Ltd,81226,109.58,CONSOLIDATED TRAVEL CHARGES WK 21,BD1 3AZ,Admin
Food Standards Agency,Food Standards Agency,24/06/2014,Subsistence EC,Foodborne Diseases Branch,Redfern Travel Ltd,83127,109.24,CONSOLIDATED TRAVEL CHARGES WK 24,BD1 3AZ,Admin
Food Standards Agency,Food Standards Agency,04/06/2014,Travel UK ,Security & Estates,Redfern Travel Ltd,81226,104.23,CONSOLIDATED TRAVEL CHARGES WK 21,BD1 3AZ,Admin
Food Standards Agency,Food Standards Agency,24/06/2014,Subsistence UK,Internal Audit,Redfern Travel Ltd,83127,103.56,CONSOLIDATED TRAVEL CHARGES WK 24,BD1 3AZ,Admin
Food Standards Agency,Food Standards Agency,04/06/2014,Travel UK ,Area 5 South West England - Cluster 55,Redfern Travel Ltd,81226,103.06,CONSOLIDATED TRAVEL CHARGES WK 21,BD1 3AZ,Programme
Food Standards Agency,Food Standards Agency,24/06/2014,Travel UK ,Area 2 Wales - Cluster 23,Redfern Travel Ltd,83127,102.38,CONSOLIDATED TRAVEL CHARGES WK 24,BD1 3AZ,Programme
Food Standards Agency,Food Standards Agency,24/06/2014,Subsistence UK,Area 1 Scotland - Cluster 12,Redfern Travel Ltd,83127,102.21,CONSOLIDATED TRAVEL CHARGES WK 24,BD1 3AZ,Programme
Food Standards Agency,Food Standards Agency,04/06/2014,Subsistence UK,Comms Directors Office,Redfern Travel Ltd,81226,102.21,CONSOLIDATED TRAVEL CHARGES WK 21,BD1 3AZ,Admin
Food Standards Agency,Food Standards Agency,24/06/2014,Subsistence UK,Comms Directors Office,Redfern Travel Ltd,83127,102.21,CONSOLIDATED TRAVEL CHARGES WK 24,BD1 3AZ,Admin
Food Standards Agency,Food Standards Agency,16/06/2014,Subsistence EC,Area 5 South West England - Cluster 57,Redfern Travel Ltd,82928,101.56,CONSOLIDATED TRAVEL CHARGES WK 23,BD1 3AZ,Programme
Food Standards Agency,Food Standards Agency,24/06/2014,Subsistence EC,Food Hygiene Policy Branch,Redfern Travel Ltd,83127,100.84,CONSOLIDATED TRAVEL CHARGES WK 24,BD1 3AZ,Admin
Food Standards Agency,Food Standards Agency,24/06/2014,Travel UK ,Area 1 Scotland - Cluster 15,Redfern Travel Ltd,83127,98.69,CONSOLIDATED TRAVEL CHARGES WK 24,BD1 3AZ,Programme
Food Standards Agency,Food Standards Agency,04/06/2014,Subsistence UK,HR,Redfern Travel Ltd,81226,97.12,CONSOLIDATED TRAVEL CHARGES WK 21,BD1 3AZ,Admin
Food Standards Agency,Food Standards Agency,04/06/2014,Subsistence UK,European & International Strategy,Redfern Travel Ltd,81226,96.56,CONSOLIDATED TRAVEL CHARGES WK 21,BD1 3AZ,Admin
Food Standards Agency,Food Standards Agency,16/06/2014,Subsistence UK,IT Service Delivery,Redfern Travel Ltd,82928,96.56,CONSOLIDATED TRAVEL CHARGES WK 23,BD1 3AZ,Admin
Food Standards Agency,Food Standards Agency,24/06/2014,Subsistence UK,Chair & Deputy Chair,Redfern Travel Ltd,83127,96.21,CONSOLIDATED TRAVEL CHARGES WK 24,BD1 3AZ,Admin
Food Standards Agency,Food Standards Agency,16/06/2014,Subsistence UK,Chief Executive & Private Office,Redfern Travel Ltd,82928,95.56,CONSOLIDATED TRAVEL CHARGES WK 23,BD1 3AZ,Admin
Food Standards Agency,Food Standards Agency,16/06/2014,Subsistence UK,Procurement,Redfern Travel Ltd,82928,95.56,CONSOLIDATED TRAVEL CHARGES WK 23,BD1 3AZ,Admin
Food Standards Agency,Food Standards Agency,16/06/2014,Travel UK ,Area 1 Scotland - Cluster 11,Redfern Travel Ltd,82928,95.30,CONSOLIDATED TRAVEL CHARGES WK 23,BD1 3AZ,Programme
Food Standards Agency,Food Standards Agency,24/06/2014,Travel UK ,Area 6 South East England - Cluster 65,Redfern Travel Ltd,83127,91.13,CONSOLIDATED TRAVEL CHARGES WK 24,BD1 3AZ,Programme
Food Standards Agency,Food Standards Agency,24/06/2014,Subsistence UK,Consumer Protection & Commercial Support,Redfern Travel Ltd,83127,90.56,CONSOLIDATED TRAVEL CHARGES WK 24,BD1 3AZ,Admin
Food Standards Agency,Food Standards Agency,16/06/2014,Travel UK ,Food Hygiene Policy Branch,Redfern Travel Ltd,82928,90.28,CONSOLIDATED TRAVEL CHARGES WK 23,BD1 3AZ,Admin
Food Standards Agency,Food Standards Agency,24/06/2014,Subsistence UK,Area 1 Scotland - Cluster 11,Redfern Travel Ltd,83127,89.56,CONSOLIDATED TRAVEL CHARGES WK 24,BD1 3AZ,Programme
Food Standards Agency,Food Standards Agency,24/06/2014,Travel UK ,Area 3 North West England - Cluster 33,Redfern Travel Ltd,83127,88.71,CONSOLIDATED TRAVEL CHARGES WK 24,BD1 3AZ,Programme
Food Standards Agency,Food Standards Agency,04/06/2014,Travel UK ,Food Hygiene Policy Branch,Redfern Travel Ltd,81226,88.33,CONSOLIDATED TRAVEL CHARGES WK 21,BD1 3AZ,Admin
Food Standards Agency,Food Standards Agency,04/06/2014,Travel UK ,Chemical Risk Assessment Unit,Redfern Travel Ltd,81226,87.65,CONSOLIDATED TRAVEL CHARGES WK 21,BD1 3AZ,Admin
Food Standards Agency,Food Standards Agency,16/06/2014,Subsistence UK,Meat & Hygiene & TSE Policy Branch,Redfern Travel Ltd,82928,85.73,CONSOLIDATED TRAVEL CHARGES WK 23,BD1 3AZ,Admin
Food Standards Agency,Food Standards Agency,04/06/2014,Subsistence UK,Area 6 South East England - Cluster 64,Redfern Travel Ltd,81226,85.56,CONSOLIDATED TRAVEL CHARGES WK 21,BD1 3AZ,Programme
Food Standards Agency,Food Standards Agency,04/06/2014,Travel UK ,Approvals & Veterinary Advice,Redfern Travel Ltd,81226,85.31,CONSOLIDATED TRAVEL CHARGES WK 21,BD1 3AZ,Programme
Food Standards Agency,Food Standards Agency,04/06/2014,Subsistence UK,Consumer Protection & Commercial Support,Redfern Travel Ltd,81226,85.01,CONSOLIDATED TRAVEL CHARGES WK 21,BD1 3AZ,Admin
Food Standards Agency,Food Standards Agency,16/06/2014,Travel UK ,Allergens,Redfern Travel Ltd,82928,81.98,CONSOLIDATED TRAVEL CHARGES WK 23,BD1 3AZ,Admin
Food Standards Agency,Food Standards Agency,16/06/2014,Subsistence UK,Area 4 North East England - Cluster 41,Redfern Travel Ltd,82928,80.86,CONSOLIDATED TRAVEL CHARGES WK 23,BD1 3AZ,Programme
Food Standards Agency,Food Standards Agency,16/06/2014,Subsistence UK,Area 4 North East England - Cluster 44,Redfern Travel Ltd,82928,79.56,CONSOLIDATED TRAVEL CHARGES WK 23,BD1 3AZ,Programme
Food Standards Agency,Food Standards Agency,24/06/2014,Subsistence UK,Security & Estates,Redfern Travel Ltd,83127,79.56,CONSOLIDATED TRAVEL CHARGES WK 24,BD1 3AZ,Admin
Food Standards Agency,Food Standards Agency,16/06/2014,Travel UK ,Area 6 South East England - Cluster 64,Redfern Travel Ltd,82928,79.03,CONSOLIDATED TRAVEL CHARGES WK 23,BD1 3AZ,Programme
Food Standards Agency,Food Standards Agency,04/06/2014,Subsistence UK,Area 2 Wales - Cluster 23,Redfern Travel Ltd,81226,76.56,CONSOLIDATED TRAVEL CHARGES WK 21,BD1 3AZ,Programme
Food Standards Agency,Food Standards Agency,24/06/2014,Subsistence UK,Area 1 Scotland - Cluster 13,Redfern Travel Ltd,83127,75.56,CONSOLIDATED TRAVEL CHARGES WK 24,BD1 3AZ,Programme
Food Standards Agency,Food Standards Agency,24/06/2014,Subsistence UK,Area 4 North East England - Cluster 46,Redfern Travel Ltd,83127,75.56,CONSOLIDATED TRAVEL CHARGES WK 24,BD1 3AZ,Programme
Food Standards Agency,Food Standards Agency,24/06/2014,Subsistence UK,Food Production Branch,Redfern Travel Ltd,83127,75.36,CONSOLIDATED TRAVEL CHARGES WK 24,BD1 3AZ,Admin
Food Standards Agency,Food Standards Agency,16/06/2014,Subsistence UK,Area 3 North West England - Cluster 31,Redfern Travel Ltd,82928,75.06,CONSOLIDATED TRAVEL CHARGES WK 23,BD1 3AZ,Programme
Food Standards Agency,Food Standards Agency,16/06/2014,Subsistence UK,Area 3 North West England - Cluster 32,Redfern Travel Ltd,82928,75.06,CONSOLIDATED TRAVEL CHARGES WK 23,BD1 3AZ,Programme
Food Standards Agency,Food Standards Agency,16/06/2014,Subsistence UK,Area 3 North West England - Cluster 33,Redfern Travel Ltd,82928,75.06,CONSOLIDATED TRAVEL CHARGES WK 23,BD1 3AZ,Programme
Food Standards Agency,Food Standards Agency,16/06/2014,Subsistence UK,Area 3 North West England - Cluster 34,Redfern Travel Ltd,82928,75.06,CONSOLIDATED TRAVEL CHARGES WK 23,BD1 3AZ,Programme
Food Standards Agency,Food Standards Agency,16/06/2014,Subsistence UK,Area 3 North West England - Cluster 35,Redfern Travel Ltd,82928,75.06,CONSOLIDATED TRAVEL CHARGES WK 23,BD1 3AZ,Programme
Food Standards Agency,Food Standards Agency,16/06/2014,Subsistence UK,Area 3 North West England - Cluster 36,Redfern Travel Ltd,82928,75.06,CONSOLIDATED TRAVEL CHARGES WK 23,BD1 3AZ,Programme
Food Standards Agency,Food Standards Agency,24/06/2014,International Travel,Analysis & Research Branch,Redfern Travel Ltd,83127,74.90,CONSOLIDATED TRAVEL CHARGES WK 24,BD1 3AZ,Admin
Food Standards Agency,Food Standards Agency,04/06/2014,Fixed Assets Additions,IT Strategy,Capita Secure Information Solutions Ltd,93682749,74.80,PO 417923 BUFFER STOCK,SN14 0TW,Admin
Food Standards Agency,Food Standards Agency,04/06/2014,Subsistence UK,Area 6 South East England - Cluster 65,Redfern Travel Ltd,81226,74.78,CONSOLIDATED TRAVEL CHARGES WK 21,BD1 3AZ,Programme
Food Standards Agency,Food Standards Agency,24/06/2014,Subsistence UK,Area 3 North West England - Cluster 35,Redfern Travel Ltd,83127,74.52,CONSOLIDATED TRAVEL CHARGES WK 24,BD1 3AZ,Programme
Food Standards Agency,Food Standards Agency,16/06/2014,Subsistence UK,Internal Audit,Redfern Travel Ltd,82928,73.32,CONSOLIDATED TRAVEL CHARGES WK 23,BD1 3AZ,Admin
Food Standards Agency,Food Standards Agency,24/06/2014,Subsistence UK,Food Hygiene Policy Branch,Redfern Travel Ltd,83127,71.56,CONSOLIDATED TRAVEL CHARGES WK 24,BD1 3AZ,Admin
Food Standards Agency,Food Standards Agency,16/06/2014,Subsistence UK,Area 5 South West England - Cluster 53,Redfern Travel Ltd,82928,70.56,CONSOLIDATED TRAVEL CHARGES WK 23,BD1 3AZ,Programme
Food Standards Agency,Food Standards Agency,04/06/2014,Travel UK ,Area 1 Scotland - Cluster 15,Redfern Travel Ltd,81226,70.42,CONSOLIDATED TRAVEL CHARGES WK 21,BD1 3AZ,Programme
Food Standards Agency,Food Standards Agency,16/06/2014,Subsistence EC,Contaminants Policy & Strategy Unit,Redfern Travel Ltd,82928,70.13,CONSOLIDATED TRAVEL CHARGES WK 23,BD1 3AZ,Admin
Food Standards Agency,Food Standards Agency,16/06/2014,Subsistence UK,Area 2 Wales - Cluster 21,Redfern Travel Ltd,82928,66.56,CONSOLIDATED TRAVEL CHARGES WK 23,BD1 3AZ,Programme
Food Standards Agency,Food Standards Agency,24/06/2014,Travel UK ,Microbiological Food Safety Branch,Redfern Travel Ltd,83127,65.43,CONSOLIDATED TRAVEL CHARGES WK 24,BD1 3AZ,Admin
Food Standards Agency,Food Standards Agency,24/06/2014,Travel UK ,Novel Food Unit,Redfern Travel Ltd,83127,64.85,CONSOLIDATED TRAVEL CHARGES WK 24,BD1 3AZ,Admin
Food Standards Agency,Food Standards Agency,16/06/2014,Travel UK ,Area 3 North West England - Cluster 33,Redfern Travel Ltd,82928,61.64,CONSOLIDATED TRAVEL CHARGES WK 23,BD1 3AZ,Programme
Food Standards Agency,Food Standards Agency,16/06/2014,Travel UK ,Analysis & Research Branch,Redfern Travel Ltd,82928,60.34,CONSOLIDATED TRAVEL CHARGES WK 23,BD1 3AZ,Admin
Food Standards Agency,Food Standards Agency,24/06/2014,Subsistence UK,Contaminants Policy & Strategy Unit,Redfern Travel Ltd,83127,58.56,CONSOLIDATED TRAVEL CHARGES WK 24,BD1 3AZ,Admin
Food Standards Agency,Food Standards Agency,24/06/2014,Travel UK ,Area 4 North East England - Cluster 44,Redfern Travel Ltd,83127,55.76,CONSOLIDATED TRAVEL CHARGES WK 24,BD1 3AZ,Programme
Food Standards Agency,Food Standards Agency,16/06/2014,Travel UK ,Area 3 North West England - Cluster 31,Redfern Travel Ltd,82928,54.75,CONSOLIDATED TRAVEL CHARGES WK 23,BD1 3AZ,Programme
Food Standards Agency,Food Standards Agency,04/06/2014,Subsistence UK,Hygiene & Microbiology Division HoD,Redfern Travel Ltd,81226,54.56,CONSOLIDATED TRAVEL CHARGES WK 21,BD1 3AZ,Admin
Food Standards Agency,Food Standards Agency,04/06/2014,Subsistence UK,Meat & Hygiene & TSE Policy Branch,Redfern Travel Ltd,81226,54.56,CONSOLIDATED TRAVEL CHARGES WK 21,BD1 3AZ,Admin
Food Standards Agency,Food Standards Agency,16/06/2014,Travel UK ,Animal Feed Branch,Redfern Travel Ltd,82928,54.40,CONSOLIDATED TRAVEL CHARGES WK 23,BD1 3AZ,Admin
Food Standards Agency,Food Standards Agency,04/06/2014,Travel UK ,Area 6 South East England - Cluster 63,Redfern Travel Ltd,81226,52.04,CONSOLIDATED TRAVEL CHARGES WK 21,BD1 3AZ,Programme
Food Standards Agency,Food Standards Agency,24/06/2014,Travel UK ,Chief Executive & Private Office,Redfern Travel Ltd,83127,47.97,CONSOLIDATED TRAVEL CHARGES WK 24,BD1 3AZ,Admin
Food Standards Agency,Food Standards Agency,24/06/2014,Subsistence UK,Area 2 Wales - Cluster 23,Redfern Travel Ltd,83127,47.01,CONSOLIDATED TRAVEL CHARGES WK 24,BD1 3AZ,Programme
Food Standards Agency,Food Standards Agency,04/06/2014,Travel UK ,Chief Scientist,Redfern Travel Ltd,81226,44.58,CONSOLIDATED TRAVEL CHARGES WK 21,BD1 3AZ,Admin
Food Standards Agency,Food Standards Agency,04/06/2014,Travel UK ,Area 1 Scotland - Cluster 12,Redfern Travel Ltd,81226,42.10,CONSOLIDATED TRAVEL CHARGES WK 21,BD1 3AZ,Programme
Food Standards Agency,Food Standards Agency,16/06/2014,Travel UK ,Area 6 South East England - Cluster 61,Redfern Travel Ltd,82928,40.59,CONSOLIDATED TRAVEL CHARGES WK 23,BD1 3AZ,Programme
Food Standards Agency,Food Standards Agency,04/06/2014,Travel UK ,Area 4 North East England - Cluster 48,Redfern Travel Ltd,81226,39.26,CONSOLIDATED TRAVEL CHARGES WK 21,BD1 3AZ,Programme
Food Standards Agency,Food Standards Agency,24/06/2014,Travel UK ,Food Hygiene Policy Branch,Redfern Travel Ltd,83127,32.36,CONSOLIDATED TRAVEL CHARGES WK 24,BD1 3AZ,Admin
Food Standards Agency,Food Standards Agency,16/06/2014,Travel UK ,Contaminants Policy & Strategy Unit,Redfern Travel Ltd,82928,30.51,CONSOLIDATED TRAVEL CHARGES WK 23,BD1 3AZ,Admin
Food Standards Agency,Food Standards Agency,04/06/2014,Travel UK ,Delivery,Redfern Travel Ltd,81226,29.06,CONSOLIDATED TRAVEL CHARGES WK 21,BD1 3AZ,Admin
Food Standards Agency,Food Standards Agency,04/06/2014,Travel UK ,Analysis & Research Branch,Redfern Travel Ltd,81226,29.02,CONSOLIDATED TRAVEL CHARGES WK 21,BD1 3AZ,Admin
Food Standards Agency,Food Standards Agency,04/06/2014,Travel UK ,Area 4 North East England - Cluster 44,Redfern Travel Ltd,81226,27.88,CONSOLIDATED TRAVEL CHARGES WK 21,BD1 3AZ,Programme
Food Standards Agency,Food Standards Agency,24/06/2014,International Travel,Internal Audit,Redfern Travel Ltd,83127,22.26,CONSOLIDATED TRAVEL CHARGES WK 24,BD1 3AZ,Admin
Food Standards Agency,Food Standards Agency,24/06/2014,Travel UK ,Area 6 South East England - Cluster 66,Redfern Travel Ltd,83127,22.16,CONSOLIDATED TRAVEL CHARGES WK 24,BD1 3AZ,Programme
Food Standards Agency,Food Standards Agency,16/06/2014,International Travel,Contaminants HoD,Redfern Travel Ltd,82928,21.26,CONSOLIDATED TRAVEL CHARGES WK 23,BD1 3AZ,Admin
Food Standards Agency,Food Standards Agency,04/06/2014,International Travel,Area 3 North West England - Cluster 35,Redfern Travel Ltd,81226,19.64,CONSOLIDATED TRAVEL CHARGES WK 21,BD1 3AZ,Programme
Food Standards Agency,Food Standards Agency,24/06/2014,Travel UK ,Contaminants HoD,Redfern Travel Ltd,83127,19.46,CONSOLIDATED TRAVEL CHARGES WK 24,BD1 3AZ,Admin
Food Standards Agency,Food Standards Agency,16/06/2014,Travel UK ,Chief Executive & Private Office,Redfern Travel Ltd,82928,15.48,CONSOLIDATED TRAVEL CHARGES WK 23,BD1 3AZ,Admin
Food Standards Agency,Food Standards Agency,24/06/2014,Travel UK ,Meat & Hygiene & TSE Policy Branch,Redfern Travel Ltd,83127,14.99,CONSOLIDATED TRAVEL CHARGES WK 24,BD1 3AZ,Admin
Food Standards Agency,Food Standards Agency,04/06/2014,Fixed Assets Additions,IT Strategy,Capita Secure Information Solutions Ltd,93682749,14.96,PO 417923 BUFFER STOCK,SN14 0TW,Admin
Food Standards Agency,Food Standards Agency,24/06/2014,International Travel,Contaminants Policy & Strategy Unit,Redfern Travel Ltd,83127,12.96,CONSOLIDATED TRAVEL CHARGES WK 24,BD1 3AZ,Admin
Food Standards Agency,Food Standards Agency,04/06/2014,International Travel,Consumer Protection & Commercial Support,Redfern Travel Ltd,81226,11.88,CONSOLIDATED TRAVEL CHARGES WK 21,BD1 3AZ,Admin
Food Standards Agency,Food Standards Agency,04/06/2014,International Travel,Operations Local Delivery ,Redfern Travel Ltd,81226,10.53,CONSOLIDATED TRAVEL CHARGES WK 21,BD1 3AZ,Admin
Food Standards Agency,Food Standards Agency,04/06/2014,Travel UK ,Area 3 North West England - Cluster 34,Redfern Travel Ltd,81226,10.16,CONSOLIDATED TRAVEL CHARGES WK 21,BD1 3AZ,Programme
Food Standards Agency,Food Standards Agency,24/06/2014,Subsistence UK,Approvals & Veterinary Advice,Redfern Travel Ltd,83127,8.40,CONSOLIDATED TRAVEL CHARGES WK 24,BD1 3AZ,Programme
Food Standards Agency,Food Standards Agency,16/06/2014,International Travel,Consumer Protection & Commercial Support,Redfern Travel Ltd,82928,3.80,CONSOLIDATED TRAVEL CHARGES WK 23,BD1 3AZ,Admin
Food Standards Agency,Food Standards Agency,24/06/2014,Subsistence UK,European & International Strategy,Redfern Travel Ltd,83127,3.12,CONSOLIDATED TRAVEL CHARGES WK 24,BD1 3AZ,Admin
Food Standards Agency,Food Standards Agency,04/06/2014,Subsistence EC,Animal Feed Branch,Redfern Travel Ltd,81226,3.12,CONSOLIDATED TRAVEL CHARGES WK 21,BD1 3AZ,Admin
Food Standards Agency,Food Standards Agency,16/06/2014,International Travel,IT HoD,Redfern Travel Ltd,82928,1.90,CONSOLIDATED TRAVEL CHARGES WK 23,BD1 3AZ,Admin
Food Standards Agency,Food Standards Agency,04/06/2014,Subsistence UK,Area 3 North West England - Cluster 33,Redfern Travel Ltd,81226,1.56,CONSOLIDATED TRAVEL CHARGES WK 21,BD1 3AZ,Programme
Food Standards Agency,Food Standards Agency,24/06/2014,Subsistence UK,Chief Executive & Private Office,Redfern Travel Ltd,83127,1.56,CONSOLIDATED TRAVEL CHARGES WK 24,BD1 3AZ,Admin
Food Standards Agency,Food Standards Agency,16/06/2014,Subsistence UK,Official Feed & Foods Controls Policy Unit,Redfern Travel Ltd,82928,1.56,CONSOLIDATED TRAVEL CHARGES WK 23,BD1 3AZ,Admin
Food Standards Agency,Food Standards Agency,24/06/2014,Subsistence UK,Novel Food Unit,Redfern Travel Ltd,83127,1.56,CONSOLIDATED TRAVEL CHARGES WK 24,BD1 3AZ,Admin
Food Standards Agency,Food Standards Agency,16/06/2014,Subsistence UK,Food Hygiene Policy Branch,Redfern Travel Ltd,82928,1.56,CONSOLIDATED TRAVEL CHARGES WK 23,BD1 3AZ,Admin
Food Standards Agency,Food Standards Agency,04/06/2014,Subsistence EC,Chief Scientist,Redfern Travel Ltd,81226,1.56,CONSOLIDATED TRAVEL CHARGES WK 21,BD1 3AZ,Admin
Food Standards Agency,Food Standards Agency,24/06/2014,Subsistence EC,Contaminants HoD,Redfern Travel Ltd,83127,1.56,CONSOLIDATED TRAVEL CHARGES WK 24,BD1 3AZ,Admin
Food Standards Agency,Food Standards Agency,04/06/2014,Subsistence EC,Novel Food Unit,Redfern Travel Ltd,81226,1.56,CONSOLIDATED TRAVEL CHARGES WK 21,BD1 3AZ,Admin
Food Standards Agency,Food Standards Agency,24/06/2014,Subsistence EC,European & International Strategy,Redfern Travel Ltd,83127,1.56,CONSOLIDATED TRAVEL CHARGES WK 24,BD1 3AZ,Admin
Food Standards Agency,Food Standards Agency,16/06/2014,Travel UK ,Area 4 North East England - Cluster 43,Redfern Travel Ltd,82928,0.00,CONSOLIDATED TRAVEL CHARGES WK 23,BD1 3AZ,Programme
Food Standards Agency,Food Standards Agency,16/06/2014,Travel UK ,Area 5 South West England - Cluster 54,Redfern Travel Ltd,82928,0.00,CONSOLIDATED TRAVEL CHARGES WK 23,BD1 3AZ,Programme
Food Standards Agency,Food Standards Agency,16/06/2014,Travel UK ,IT HoD,Redfern Travel Ltd,82928,0.00,CONSOLIDATED TRAVEL CHARGES WK 23,BD1 3AZ,Admin
Food Standards Agency,Food Standards Agency,16/06/2014,International Travel,Operational Delivery,Redfern Travel Ltd,82928,0.00,CONSOLIDATED TRAVEL CHARGES WK 23,BD1 3AZ,Programme
Food Standards Agency,Food Standards Agency,16/06/2014,Subsistence UK,Investigations,Redfern Travel Ltd,82928,0.00,CONSOLIDATED TRAVEL CHARGES WK 23,BD1 3AZ,Admin
Food Standards Agency,Food Standards Agency,24/06/2014,Laundry,Operational Delivery,Apparelmaster UK Ltd,54311,-0.03,PO 417042 LAUNDRY SERVICE 27/4/14-24/05/14,PR2 9ZD,Programme
Food Standards Agency,Food Standards Agency,16/06/2014,Travel UK ,Legal Branch A,Redfern Travel Ltd,82928,-26.04,CONSOLIDATED TRAVEL CHARGES WK 23,BD1 3AZ,Admin
Food Standards Agency,Food Standards Agency,04/06/2014,Travel UK ,IT HoD,Redfern Travel Ltd,81226,-31.60,CONSOLIDATED TRAVEL CHARGES WK 21,BD1 3AZ,Admin
Food Standards Agency,Food Standards Agency,24/06/2014,Travel UK ,Approvals & Veterinary Advice,Redfern Travel Ltd,83127,-115.28,CONSOLIDATED TRAVEL CHARGES WK 24,BD1 3AZ,Programme
Food Standards Agency,Food Standards Agency,30/06/2014,Utilities,Security & Estates,Defra C/o Capita,1002541946,"-1,468.00",FOSS HSE 2013-14 Q4,EC2V 7NQ,Admin
Food Standards Agency,Food Standards Agency,30/06/2014,Rates/contrib in lieu of rates,Security & Estates,Defra C/o Capita,1002541946,"-5,260.00",FOSS HSE 2013-14 Q4,EC2V 7NQ,Admin
Food Standards Agency,Food Standards Agency,30/06/2014,Service charges,Security & Estates,Defra C/o Capita,1002541946,"-13,099.00",FOSS HSE 2013-14 Q4,EC2V 7NQ,Admin
Food Standards Agency,Food Standards Agency,30/06/2014,Rent & management charges - Outside London,Security & Estates,Defra C/o Capita,1002541946,"-17,969.00",FOSS HSE 2013-14 Q4,EC2V 7NQ,Admin
Food Standards Agency,Food Standards Agency,30/06/2014,Rent & management charges - Outside London,Security & Estates,Defra C/o Capita,1002541946,"-20,657.00",FOSS HSE 2013-14 Q4,EC2V 7NQ,Admin
"Date Run: 16-JUL-14 09.48.27 AM --- Company Code : '17','18' , Payment Start Date : '01-JUN-2014' , Payment End Date : '30-JUN-2014'",,,,,,,,,,
